fUSD/lending_fUSD_20240611
["ID","MTS","AMOUNT","RATE_DAILY","PERIOD"]
[329112246,1718112651271,-500.0,0.00024657,2]
[329112248,1718112651282,-500.0,0.00024657,2]
[329112251,1718112651292,-504.63,0.00024657,2]
[329112252,1718112651304,-500.0,0.00024657,2]
[329112255,1718112651314,-575.51,0.00024657,2]
[329112257,1718112651324,-520.16018456,0.00024657,2]
[329112258,1718112651334,-501.5,0.00024657,2]
[329112260,1718112651348,-500.0,0.00024657,2]
[329112263,1718112651358,-500.0,0.00024657,2]
[329112265,1718112651369,-505.68265614,0.00024657,2]
[329112267,1718112651380,-1586.47,0.00024657,2]
[329112269,1718112651390,-500.0,0.00024657,2]
[329112271,1718112651401,-500.0,0.00024657,2]
[329112273,1718112651411,-588.57,0.00024657,2]
[329112275,1718112651421,-562.09,0.00024657,2]
[329112276,1718112651431,-500.0,0.00024657,2]
[329112279,1718112651442,-500.0,0.00024657,2]
[329112281,1718112651452,-722.9,0.00024657,2]
[329112282,1718112651464,-500.0,0.00024657,2]
[329112284,1718112651474,-507.4498086,0.00024657,2]
[329112287,1718112651484,-151.0,0.00024657,7]
[329112288,1718112651494,-500.0,0.00024657,2]
[329112290,1718112651505,-1166.36,0.00024657,2]
[329112292,1718112651516,-1166.36,0.00024657,2]
[329112294,1718112651526,-1166.36,0.00024657,2]
[329112296,1718112651536,-1166.36,0.00024657,2]
[329112298,1718112651547,-1166.36,0.00024657,2]
[329112300,1718112651557,-1166.36,0.00024657,2]
[329112303,1718112651568,-1166.36,0.00024657,2]
[329112305,1718112651578,-1166.36,0.00024657,2]
[329112307,1718112651588,-1166.36,0.00024657,2]
[329112308,1718112651598,-1166.36,0.00024657,2]
[329112309,1718112651608,-1166.36,0.00024657,2]
[329112310,1718112651621,-500.0,0.00024657,2]
[329112311,1718112651633,-1166.36,0.00024657,2]
[329112312,1718112651643,-500.0,0.00024657,2]
[329112313,1718112651653,-963.36649528,0.00024657,2]
[329112316,1718112651700,-202.99350472,0.00024657,2]
[329112317,1718112651710,-722.08149528,0.00024657,2]
[329112318,1718112651722,-444.27850472,0.00024657,2]
[329112319,1718112651733,-500.0,0.00024657,2]
[329112320,1718112651743,-500.0,0.00024657,2]
[329112321,1718112651753,-296.87149528,0.00024657,2]
[329112322,1718112651765,-261.92532102,0.00024657,2]
[329112323,1718112651778,-463.3999995,0.00024657,2]
[329112324,1718112651790,-94.0531842,0.00024657,2]
[329112325,1718112651800,-500.0,0.00024657,2]
[329112326,1718112651811,-500.0,0.00024657,2]
[329112327,1718112651821,-500.0,0.00024657,2]
[329112328,1718112651831,-500.0,0.00024657,2]
[329112329,1718112651841,-168.07026617,0.00024657,2]
[329112339,1718112651957,-331.92973383,0.00024657,2]
[329112341,1718112651969,-609.88,0.00024657,2]
[329112343,1718112651980,-506.41207656,0.00024657,2]
[329112344,1718112651991,-500.0,0.00024657,2]
[329112345,1718112652002,-500.0,0.00024657,2]
[329112346,1718112652013,-505.69764534,0.00024657,2]
[329112347,1718112652024,-996.53,0.00024657,2]
[329112348,1718112652035,-500.0,0.00024657,2]
[329112349,1718112652046,-408.29,0.00024657,2]
[329112350,1718112652056,-500.0,0.00024657,2]
[329112351,1718112652067,-1303.81,0.00024657,2]
[329112352,1718112652077,-500.0,0.00024657,2]
[329112353,1718112652088,-442.29086452,0.00024657,2]
[329112354,1718112652099,-746.25,0.00024657,2]
[329112355,1718112652110,-856.73,0.00024657,2]
[329112356,1718112652121,-571.07,0.00024657,2]
[329112360,1718112652250,-188.9,0.00024657,2]
[329112362,1718112652262,-500.0,0.00024657,2]
[329112364,1718112652274,-509.54837014,0.00024657,2]
[329112366,1718112652284,-899.54,0.00024657,2]
[329112368,1718112652293,-500.0,0.00024657,2]
[329112369,1718112652304,-714.83,0.00024657,2]
[329112371,1718112652313,-500.0,0.00024657,2]
[329112373,1718112652323,-1057.89,0.00024657,2]
[329112375,1718112652333,-500.0,0.00024657,2]
[329112377,1718112652345,-507.31958935,0.00024657,2]
[329112379,1718112652356,-500.0,0.00024657,2]
[329112381,1718112652366,-864.14,0.00024657,2]
[329112384,1718112652376,-500.0,0.00024657,2]
[329112385,1718112652386,-544.0,0.00024657,2]
[329112388,1718112652396,-500.0,0.00024657,2]
[329112390,1718112652406,-503.85506341,0.00024657,2]
[329112392,1718112652416,-500.0,0.00024657,2]
[329112393,1718112652425,-1246.16,0.00024657,2]
[329112395,1718112652436,-1065.28,0.00024657,2]
[329112397,1718112652446,-535.0,0.00024657,2]
[329112399,1718112652456,-6614.02,0.00024657,2]
[329112401,1718112652468,-641.97411589,0.00024657,2]
[329112403,1718112652477,-151.0,0.00024657,7]
[329112405,1718112652487,-5045.15254095,0.00024657,2]
[329112408,1718112652500,-1625.7938459,0.00024657,2]
[329112410,1718112652512,-1150.28361315,0.00024657,2]
[329112412,1718112652522,-500.0,0.00024657,2]
[329112414,1718112652532,-500.0,0.00024657,2]
[329112416,1718112652542,-500.0,0.00024657,2]
[329112418,1718112652552,-1325.25,0.00024657,2]
[329112420,1718112652563,-500.0,0.00024657,2]
[329112422,1718112652573,-643.35,0.00024657,2]
[329112424,1718112652584,-504.57244416,0.00024657,2]
[329112426,1718112652594,-500.0,0.00024657,2]
[329112428,1718112652605,-1148.17,0.00024657,2]
[329112430,1718112652615,-500.0,0.00024657,2]
[329112432,1718112652631,-558.37456774,0.00024657,2]
[329112434,1718112652643,-2975.09,0.00024657,2]
[329112436,1718112652653,-2172.14,0.00024657,2]
[329112438,1718112652664,-947.48,0.00024657,2]
[329112440,1718112652674,-1983.39,0.00024657,2]
[329112442,1718112652685,-1285.35,0.00024657,2]
[329112444,1718112652695,-500.0,0.00024657,2]
[329112446,1718112652705,-500.0,0.00024657,2]
[329112447,1718112652718,-373.82931979,0.00024657,2]
[329112449,1718112652728,-151.0,0.00024657,7]
[329112451,1718112652738,-569.57671497,0.00024657,2]
[329112453,1718112652748,-224.32128752,0.00024657,2]
[329112455,1718112652758,-1902.62,0.00024657,2]
[329112458,1718112652769,-1924.7,0.00024657,2]
[329112460,1718112652779,-500.0,0.00024657,2]
[329112462,1718112652788,-1082.8,0.00024657,2]
[329112464,1718112652799,-994.51426713,0.00024657,2]
[329112466,1718112652812,-783.00573287,0.00024657,2]
[329112468,1718112652822,-516.69385498,0.00024657,2]
[329112470,1718112652832,-471.33250085,0.00024657,2]
[329112480,1718112652927,-1635.24749915,0.00024657,2]
[329112482,1718112652939,-3125.66,0.00024657,2]
[329112484,1718112652949,-1678.11,0.00024657,2]
[329112486,1718112652962,-432.02062965,0.00024657,2]
[329112488,1718112652973,-151.0,0.00024657,7]
[329112490,1718112652985,-500.0,0.00024657,2]
[329112492,1718112652995,-2871.37,0.00024657,2]
[329112494,1718112653006,-500.0,0.00024657,2]
[329112496,1718112653016,-151.0,0.00024657,7]
[329112498,1718112653026,-336.64691743,0.00024657,2]
[329112501,1718112653045,-1912.84308257,0.00024657,2]
[329112503,1718112653057,-500.0,0.00024657,2]
[329112505,1718112653067,-500.0,0.00024657,2]
[329112507,1718112653078,-500.0,0.00024657,2]
[329112509,1718112653089,-1488.62,0.00024657,2]
[329112511,1718112653099,-241.69475065,0.00024657,2]
[329112514,1718112653111,-1432.59524935,0.00024657,2]
[329112516,1718112653121,-7836.4924884,0.00024657,2]
[329112561,1718112653663,-752.59370477,0.00024656,2]
[329112563,1718112653674,-30.52629523,0.00024657,2]
[329112565,1718112653687,-844.42172,0.00024657,2]
[329112567,1718112653700,-1006.8,0.00024657,2]
[329112569,1718112653715,-14991.74337432,0.00024657,2]
[329112582,1718112653837,-925.625,0.00024657,2]
[329112584,1718112653850,-804.280988,0.00024657,2]
[329112586,1718112653862,-440.4,0.00024657,2]
[329112589,1718112653874,-1741.775,0.00024657,2]
[329112591,1718112653887,-577.99175918,0.00024657,2]
[329112977,1718112663387,212.4,0.0002479,15]
[329112978,1718112663582,150.5,0.0002479,15]
[329112979,1718112664333,225.69,0.0002479,15]
[329112980,1718112664398,150.5,0.0002478,15]
[329112981,1718112665487,150.5,0.0002477,15]
[329112982,1718112666023,150.5,0.0002479,15]
[329112983,1718112666494,211.88,0.0002478,15]
[329112984,1718112904921,150.5,0.00019716,15]
[329112985,1718112905374,150.5,0.00019706,15]
[329112986,1718112905899,150.5,0.00019696,15]
[329112987,1718112906470,150.5,0.00024989,15]
[329112988,1718112907061,150.5,0.00024979,15]
[329112989,1718112908268,264.0,0.00024969,15]
[329112990,1718112954948,-443.26,0.00011145,2]
[329112991,1718113034974,209.73814851,0.0001,2]
[329112994,1718113630184,-1337.99277293,0.00013059,2]
[329112995,1718113630208,-206.0593275,0.0001306,2]
[329112996,1718113630234,-193.18760792,0.00013061,2]
[329112997,1718113630261,-421.09,0.00013066,2]
[329112998,1718113630284,-430.47076723,0.00013553,2]
[329112999,1718113630309,-155.8588156,0.00013718,2]
[329113000,1718113630332,-150.0,0.00013863,2]
[329113001,1718113630361,-131.85994846,0.0001389,2]
[329113004,1718113634145,-87.79005154,0.0001389,2]
[329113005,1718113634173,-150.0,0.00013899,2]
[329113006,1718113634211,-300.0,0.00013899,2]
[329113007,1718113634244,-3551.76967493,0.000139,2]
[329113008,1718113646147,-168.38778143,0.000139,2]
[329113009,1718113647168,-455.46952989,0.000139,2]
[329113040,1718113832847,-659.47,0.00013499,2]
[329113041,1718113832863,-550.51535039,0.00013499,2]
[329113042,1718113832875,-1100.0,0.000135,4]
[329113043,1718113832886,-2200.0,0.000136,4]
[329113044,1718113832899,-3300.0,0.000137,5]
[329113045,1718113832916,-300.0,0.00013799,2]
[329113046,1718113832930,-4400.0,0.000138,5]
[329113047,1718113832952,-219.65,0.0001389,2]
[329113048,1718113832973,-3452.52323547,0.000139,2]
[329113049,1718113832991,-690.20000005,0.000139,2]
[329113050,1718113833010,-2952.58747823,0.000139,2]
[329113051,1718113833037,-204.83739732,0.000139,2]
[329113052,1718113833049,-337.37116382,0.000139,2]
[329113053,1718113833075,-5600.0,0.000139,5]
[329113054,1718113833090,-155.10589946,0.000139,2]
[329113055,1718113833107,-324.19129241,0.000139,2]
[329113056,1718113833123,-499.99,0.0001399,2]
[329113057,1718113833142,-153.21,0.0001399,2]
[329113058,1718113833154,-153.21,0.0001399,2]
[329113059,1718113833169,-156.01393959,0.0001399,2]
[329113060,1718113833185,-156.01393959,0.0001399,2]
[329113061,1718113833202,-156.01393959,0.0001399,2]
[329113062,1718113833224,-155.0,0.00013998,2]
[329113063,1718113833237,-688.89348887,0.00013998,2]
[329113064,1718113833254,-2143.89729094,0.00013998,2]
[329113065,1718113833269,-193.18760792,0.00013998,2]
[329113066,1718113833284,-283.81021254,0.00013998,2]
[329113067,1718113833296,-1000.0,0.00013999,2]
[329113068,1718113833307,-1089.55055981,0.00013999,5]
[329113069,1718113833322,-894761.01464847,0.00014,2]
[329113070,1718113833342,-826.29867666,0.00014,2]
[329113071,1718113833555,-12028.46088959,0.00014,2]
[329113072,1718113833573,-505.38615579,0.00014,2]
[329113073,1718113833589,-331.9629089,0.00014,2]
[329113074,1718113833604,-674.67466873,0.00014,2]
[329113075,1718113833627,-9736.20296359,0.00014,2]
[329113076,1718113836334,-833.79793316,0.00014,2]
[329113077,1718113836347,-318.86689986,0.00014,2]
[329113078,1718113836360,-266.34568794,0.00014,2]
[329113079,1718113836373,-59946.09709974,0.00014,2]
[329113080,1718113836388,-6697.3536,0.00014,2]
[329113081,1718113836825,-1800.0,0.00014,2]
[329113083,1718113836839,-641.43342479,0.00014,2]
[329113095,1718113838446,-1233213.93834186,0.00014,2]
[329113096,1718113838462,-257.40332558,0.00014,2]
[329113097,1718113838475,-6888.05248283,0.00014,2]
[329113098,1718113838489,-384.59479513,0.00014,2]
[329113099,1718113838503,-3985.1541,0.00014,2]
[329113100,1718113838847,-718.43128911,0.00014,2]
[329113101,1718113838861,-667999.99999996,0.00014,2]
[329113102,1718113838875,-28375.96907793,0.00014,2]
[329113105,1718113839210,-27902.42344949,0.00014,2]
[329113138,1718113841143,-3689.1070461,0.00014,2]
[329113139,1718113841485,-1291.95839779,0.00014,2]
[329113140,1718113841921,-670.0,0.00014,2]
[329113274,1718113844005,-7097.7816086,0.00014,2]
[329113278,1718113844017,-3888.18426486,0.00014,2]
[329113280,1718113844029,-2269.44212943,0.00014,2]
[329113282,1718113844046,-1487567.65733513,0.00014,2]
[329113293,1718113852037,-24388.20878648,0.00014,2]
[329113294,1718113852058,-4639.58160779,0.00014,2]
[329113295,1718113852379,-1538.86809141,0.00014,2]
[329113296,1718113852398,-33491.50000003,0.00014,2]
[329113299,1718113852755,-131651.13343165,0.00014,2]
[329113301,1718113852775,-2914.12010684,0.00014,2]
[329113304,1718113852792,-2576.2086744,0.00014,2]
[329113306,1718113852816,-67084.12694563,0.00014,2]
[329113307,1718113852833,-474.27284853,0.00014,2]
[329113308,1718113852850,-338.9879229,0.00014,2]
[329113309,1718113853034,-3672.61879995,0.00014,2]
[329113318,1718114829239,-186.11592372,0.00013497,2]
[329113319,1718114829268,-155.09678174,0.00013498,2]
[329113320,1718114829299,-171.49142024,0.0001387,2]
[329113321,1718114885561,346.2944627,0.00027,60]
[329113327,1718115033731,-1837.71670388,0.00012316,2]
[329113328,1718115033744,-1162.28329612,0.00012316,2]
[329113329,1718115033757,-244.02160388,0.00012317,2]
[329113330,1718115033772,-191.30839612,0.00012317,2]
[329113331,1718115033809,-351.86555612,0.0001386,2]
[329113332,1718115033841,-467.95908505,0.00013971,2]
[329113333,1718115033867,-200.0,0.00013981,2]
[329113334,1718115033901,-69.4270313,0.00013999,2]
[329113335,1718115033947,-230.5729687,0.00013999,2]
[329113336,1718115033969,-3286.822595,0.00014,2]
[329113337,1718115033982,-200.0,0.00014,2]
[329113338,1718115034017,-3000.0,0.00014,2]
[329113339,1718115034029,-200.0,0.0001414,2]
[329113340,1718115034059,-200.0,0.00014281,2]
[329113341,1718115034072,-240.96324144,0.00014285,2]
[329113342,1718115034091,-200.0,0.00014424,2]
[329113343,1718115034125,-1218.4,0.0001444,2]
[329113344,1718115034143,-200.0,0.00014568,2]
[329113345,1718115034163,-435.33,0.00014581,2]
[329113346,1718115034178,-1860.66,0.00014695,2]
[329113347,1718115034193,-400.0,0.000147,5]
[329113348,1718115034209,-1019.6,0.00014759,2]
[329113349,1718115034221,-800.0,0.000148,5]
[329113350,1718115034232,-517.38287921,0.00014898,2]
[329113351,1718115034243,-155.83930457,0.00014898,2]
[329113352,1718115034256,-1067.92836055,0.00014898,2]
[329113353,1718115034267,-625.97046574,0.00014898,2]
[329113354,1718115034282,-512.67403173,0.00014899,2]
[329113355,1718115034292,-28214.63850021,0.000149,2]
[329113377,1718115034519,-1731.14107425,0.000149,2]
[329113408,1718115043238,-4017.36430733,0.000149,2]
[329113411,1718115043254,-2030.05793723,0.000149,2]
[329113414,1718115043281,-656.14,0.000149,2]
[329113419,1718115043315,-273.2547,0.000149,2]
[329113450,1718115043675,-434.48,0.000149,2]
[329113452,1718115043697,-540.62114814,0.000149,2]
[329113456,1718115043722,-592.42661875,0.000149,2]
[329113492,1718115044311,-560.56292369,0.000149,2]
[329113494,1718115044325,-7855.87926396,0.000149,2]
[329113496,1718115044344,-3060.38242876,0.000149,2]
[329113500,1718115044370,-7328.40154409,0.000149,2]
[329113502,1718115044384,-6673.4668,0.000149,2]
[329113504,1718115044404,-16827.35945359,0.000149,2]
[329113506,1718115044417,-567.92,0.000149,2]
[329113507,1718115044430,-497.8815,0.000149,2]
[329113508,1718115044461,-722.5058,0.000149,2]
[329113509,1718115044477,-133450.2285,0.000149,2]
[329113510,1718115044509,-1200.0,0.000149,5]
[329113511,1718115044529,-180.00850965,0.00014922,2]
[329113512,1718115044540,-200.86900762,0.00014922,2]
[329113513,1718115044564,-175.57491198,0.00014978,2]
[329113514,1718115044575,-12580.72738701,0.00014978,2]
[329113515,1718115044586,-324.19129241,0.00014978,2]
[329113516,1718115044597,-988.28434948,0.00014978,2]
[329113517,1718115044608,-153.22,0.0001499,2]
[329113518,1718115044620,-163.9,0.00014994,2]
[329113519,1718115044630,-216.17521412,0.00014998,2]
[329113520,1718115044641,-172.86247748,0.00014998,2]
[329113521,1718115044653,-38866.93556868,0.00015,2]
[329113522,1718115044670,-5335.2,0.00015,2]
[329113523,1718115044686,-511.81449438,0.00015,2]
[329113524,1718115044709,-760.447,0.00015,2]
[329113525,1718115044727,-881.69027731,0.00015,2]
[329113526,1718115044748,-4629.91552918,0.00015,2]
[329113527,1718115044763,-4786.20543805,0.00015,2]
[329113528,1718115044778,-8864.50863,0.00015,2]
[329113529,1718115044790,-3912.70000001,0.00015,2]
[329113530,1718115044805,-271.67257355,0.00015,2]
[329113531,1718115044817,-3611.99207566,0.00015,2]
[329113532,1718115044829,-2701.880311,0.00015,2]
[329113533,1718115044841,-1918.44999999,0.00015,2]
[329113534,1718115044854,-1233213.93834186,0.00015,2]
[329113539,1718115045606,-2062.2118101,0.00015,2]
[329113540,1718115045620,-7999.43678401,0.00015,2]
[329113541,1718115045633,-1082.17917477,0.00015,2]
[329113542,1718115045646,-19486.89429252,0.00015,2]
[329113543,1718115045660,-21657.51740799,0.00015,2]
[329113544,1718115045674,-3654.76217935,0.00015,2]
[329113545,1718115045691,-3094.25557999,0.00015,2]
[329113546,1718115045703,-3912.06897018,0.00015,2]
[329113547,1718115045716,-5253.80575515,0.00015,2]
[329113548,1718115045728,-114060.15663338,0.00015,2]
[329113549,1718115045741,-250.0,0.00015078,2]
[329113550,1718115045754,-169.16,0.00015287,2]
[329113551,1718115045769,-1000.0,0.00015287,2]
[329113552,1718115045797,-420.0,0.00015337,2]
[329113556,1718115045818,-12580.72738694,0.00016036,2]
[329113559,1718115045832,-988.28434946,0.00016405,2]
[329113562,1718115045846,-150.59,0.00016572,2]
[329113564,1718115045865,-175.57491196,0.0001678,2]
[329113565,1718115045879,-587.0,0.00016802,2]
[329113566,1718115045899,-435.33,0.00016845,2]
[329113567,1718115045923,-12580.72738694,0.00017093,2]
[329113568,1718115045938,-1218.4,0.0001718,2]
[329113569,1718115045950,-1000.0,0.00017198,2]
[329113570,1718115045962,-1335.96,0.00017612,2]
[329113571,1718115045974,-988.28434946,0.00017832,2]
[329113572,1718115045990,-150.59,0.00017942,2]
[329113573,1718115046004,-324.19129241,0.00017955,2]
[329113574,1718115046024,-163.9,0.00017993,2]
[329113575,1718115046052,-1112.4472704,0.00018,2]
[329113576,1718115046064,-12580.72738694,0.00018151,2]
[329113577,1718115046076,-2316.0,0.000184,2]
[329113578,1718115046102,-739.0,0.000184,2]
[329113579,1718115046113,-823.0,0.00018408,2]
[329113580,1718115046131,-175.57491196,0.00018582,2]
[329113581,1718115046145,-3000.0,0.00019,2]
[329113582,1718115046160,-435.33,0.00019109,2]
[329113583,1718115046174,-1000.0,0.00019109,2]
[329113584,1718115046191,-500.0,0.00019178,2]
[329113585,1718115046217,-500.0,0.00019178,2]
[329113586,1718115046239,-399.26837216,0.00019178,2]
[329113587,1718115046270,-500.0,0.00019178,2]
[329113588,1718115046284,-500.0,0.00019178,2]
[329113589,1718115046297,-500.0,0.00019178,2]
[329113590,1718115046312,-402.22883199,0.00019178,2]
[329113591,1718115046326,-12580.72738694,0.00019209,2]
[329113592,1718115046341,-1000.0,0.00019225,2]
[329113593,1718115046354,-1000.0,0.00019225,2]
[329113594,1718115046368,-1000.0,0.00019225,2]
[329113595,1718115046383,-1000.0,0.00019225,2]
[329113596,1718115046393,-1000.0,0.00019225,2]
[329113597,1718115046416,-1000.0,0.00019225,2]
[329113599,1718115046433,-1000.0,0.00019225,2]
[329113602,1718115046451,-1000.0,0.00019225,2]
[329113604,1718115046462,-1000.0,0.00019225,2]
[329113606,1718115046475,-1000.0,0.00019225,2]
[329113608,1718115046489,-1000.0,0.00019225,2]
[329113610,1718115046514,-1000.0,0.00019225,2]
[329113611,1718115046526,-1000.0,0.00019225,2]
[329113612,1718115046537,-1000.0,0.00019225,2]
[329113613,1718115046549,-1000.0,0.00019225,2]
[329113614,1718115046560,-1000.0,0.00019225,2]
[329113615,1718115046574,-1000.0,0.00019225,2]
[329113616,1718115046590,-1000.0,0.00019225,2]
[329113617,1718115046605,-1000.0,0.00019225,2]
[329113618,1718115046615,-1000.0,0.00019225,2]
[329113619,1718115046625,-1000.0,0.00019225,2]
[329113620,1718115046635,-1000.0,0.00019225,2]
[329113621,1718115046646,-1000.0,0.00019225,2]
[329113622,1718115046656,-1000.0,0.00019225,2]
[329113623,1718115046666,-1000.0,0.00019225,2]
[329113624,1718115046676,-676.0,0.00019225,2]
[329113625,1718115046687,-988.28434946,0.00019259,2]
[329113626,1718115046697,-1000.0,0.00019732,2]
[329113627,1718115046707,-1000.0,0.00019732,2]
[329113628,1718115046719,-1000.0,0.00019732,2]
[329113629,1718115046730,-1000.0,0.00019732,2]
[329113630,1718115046741,-1000.0,0.00019732,2]
[329113631,1718115046751,-1000.0,0.00019732,2]
[329113632,1718115046763,-1000.0,0.00019732,2]
[329113633,1718115046776,-1000.0,0.00019732,2]
[329113634,1718115046790,-1000.0,0.00019732,2]
[329113635,1718115046804,-1000.0,0.00019732,2]
[329113636,1718115046816,-1000.0,0.00019732,2]
[329113637,1718115046830,-1000.0,0.00019732,2]
[329113638,1718115046844,-1000.0,0.00019732,2]
[329113639,1718115046862,-1218.4,0.00019919,2]
[329113641,1718115046873,-3894.70585014,0.0002,2]
[329113644,1718115046892,-155.0,0.0002,2]
[329113645,1718115046903,-1981.97860415,0.0002,2]
[329113647,1718115046913,-1000.0,0.0002,2]
[329113649,1718115046925,-1000.0,0.0002,2]
[329113651,1718115046942,-932.0,0.0002,2]
[329113652,1718115046966,-226.7178388,0.000201,2]
[329113655,1718115046989,-1152.0,0.00020167,2]
[329113657,1718115047008,-12580.72738694,0.00020266,2]
[329113658,1718115047020,-175.57491196,0.00020384,2]
[329113659,1718115047033,-1019.6,0.00020663,2]
[329113660,1718115047049,-324.19129241,0.00020932,2]
[329113661,1718115047063,-1000.0,0.0002102,2]
[329113662,1718115047073,-12580.72738694,0.00021324,2]
[329113663,1718115047096,-200.0,0.00021357,2]
[329113664,1718115047116,-435.33,0.00021372,2]
[329113665,1718115047131,-651.0,0.00021429,2]
[329113666,1718115047147,-13846.55047256,0.00021454,2]
[329113667,1718115047159,-500.0,0.000219,2]
[329113668,1718115047174,-170.73,0.00021918,2]
[329113669,1718115047186,-250.0,0.00021918,2]
[329113670,1718115047205,-153.67,0.00021918,2]
[329113671,1718115047216,-790.86878271,0.00022,2]
[329113672,1718115047227,-218.0,0.00022094,2]
[329113673,1718115047237,-175.57491196,0.00022186,2]
[329113674,1718115047248,-12580.72738694,0.00022381,2]
[329113675,1718115047259,-5342.121,0.000224,2]
[329113676,1718115047274,-38070.0,0.000224,2]
[329113677,1718115047284,-1573.0,0.000224,2]
[329113678,1718115047298,-5127.0,0.000224,2]
[329113679,1718115047311,-1194.0,0.000224,2]
[329113680,1718115047322,-1066.0,0.000224,2]
[329113681,1718115047334,-1000.0,0.00022471,2]
[329113682,1718115047346,-2359.7,0.00022572,2]
[329113683,1718115047364,-500.0,0.00022602,2]
[329113684,1718115047375,-1000.0,0.00022931,2]
[329113685,1718115047388,-967.19134541,0.00023,4]
[329113686,1718115047399,-380.7,0.00023288,2]
[329113687,1718115047410,-380.0,0.00023288,2]
[329113688,1718115047420,-501.98,0.00023288,2]
[329113689,1718115047431,-12580.72738694,0.00023439,2]
[329113690,1718115047443,-219.65,0.00023507,3]
[329113691,1718115047454,-73366.19723794,0.000236,2]
[329113692,1718115047466,-435.33,0.00023636,2]
[329113693,1718115047476,-500.0,0.00023698,2]
[329113694,1718115047488,-151.0,0.00023753,2]
[329113695,1718115047503,-150.43,0.00023753,2]
[329113696,1718115047516,-150.468,0.00023753,2]
[329113697,1718115047527,-150.461,0.00023753,2]
[329113698,1718115047538,-358.0,0.00023753,2]
[329113699,1718115047549,-969.0,0.00023753,2]
[329113700,1718115047560,-362.357,0.00023753,2]
[329113701,1718115047570,-590.372,0.00023753,2]
[329113702,1718115047581,-2404.0,0.00023753,2]
[329113703,1718115047591,-1304.0,0.00023753,2]
[329113704,1718115047602,-2261.894,0.00023753,2]
[329113705,1718115047613,-544.0,0.00023753,2]
[329113706,1718115047623,-324.19129241,0.00023909,2]
[329113707,1718115047633,-500.0,0.00023931,2]
[329113708,1718115047644,-500.0,0.00023931,2]
[329113709,1718115047654,-500.0,0.00023931,2]
[329113710,1718115047665,-500.0,0.00023931,2]
[329113711,1718115047675,-500.0,0.00023931,2]
[329113712,1718115047686,-500.0,0.00023931,2]
[329113713,1718115047697,-500.0,0.00023931,2]
[329113714,1718115047709,-500.0,0.00023931,2]
[329113715,1718115047720,-500.0,0.00023931,2]
[329113716,1718115047731,-500.0,0.00023931,2]
[329113717,1718115047741,-500.0,0.00023931,2]
[329113718,1718115047762,-500.0,0.00023931,2]
[329113719,1718115047773,-500.0,0.00023931,2]
[329113720,1718115047784,-500.0,0.00023931,2]
[329113721,1718115047796,-500.0,0.00023931,2]
[329113722,1718115047806,-500.0,0.00023931,2]
[329113723,1718115047816,-170.14,0.00023931,2]
[329113724,1718115047827,-500.0,0.00023931,2]
[329113725,1718115047838,-500.0,0.00023931,2]
[329113726,1718115047850,-500.0,0.00023931,2]
[329113727,1718115047863,-500.0,0.00023931,2]
[329113728,1718115047873,-500.0,0.00023931,2]
[329113729,1718115047886,-500.0,0.00023931,2]
[329113730,1718115047902,-500.0,0.00023931,2]
[329113731,1718115047913,-500.0,0.00023931,2]
[329113732,1718115047925,-500.0,0.00023931,2]
[329113733,1718115047943,-500.0,0.00023931,2]
[329113734,1718115047957,-500.0,0.00023931,2]
[329113735,1718115047974,-500.0,0.00023931,2]
[329113736,1718115047989,-500.0,0.00023931,2]